Cogmind - Beta 13 @@@ ROGUE MODE // 2024.07.08 @ 16:47:23 Player: Quiggsy Result: Destroyed by D-53 Grenadier with Mini Grenade Launcher Performance ------------- Evolutions (0) 0 Regions Visited (2) 400 Robots Destroyed (18) 90 Value Destroyed (415) 415 Prototype IDs (0) 0 Alien Tech Used (0) 0 Bonus (0) 0 TOTAL SCORE: 905 Bonus ------- None Cogmind --------- Core Integrity 0/250 Matter 241/300 Energy 100/100 System Corruption 0% Temperature Cool (0) Movement Rolling (200) Ox8 Location -10/Mines Parts ------- > --- POWER (1) -------- (None) > --- PROPULSION (2) --- Wheel > --- UTILITY (2) ------ Huge Storage Unit Propulsion Shielding > --- WEAPON (2) ------- (None) > --- INVENTORY (25) --- Ion Engine Light Ion Engine Light Ion Engine Light Treads Light Treads Wheel Improved Heat Sink Grenade Launcher Grenade Launcher Grenade Launcher Rocket Launcher Explosive Trap Explosive Trap Explosive Trap Peak State ------------ > --- POWER ------------ Ion Engine > --- PROPULSION ------- Wheel Wheel > --- UTILITY ---------- Huge Storage Unit Propulsion Shielding > --- WEAPON ----------- Grenade Launcher Rocket Launcher > --- INVENTORY -------- Ion Engine Ion Engine Light Ion Engine Light Ion Engine Light Treads Light Treads Wheel Improved Heat Sink Light Assault Rifle Light Assault Rifle Grenade Launcher Grenade Launcher Explosive Trap Explosive Trap Explosive Trap Explosive Trap [Rating: 9] Favorites ----------- Power Ion Engine Engine Ion Engine Propulsion Wheel Wheel Wheel Utility Huge Storage Unit Storage Huge Storage Unit Protection Propulsion Shielding Weapon Assault Rifle Ballistic Gun Assault Rifle Launcher Grenade Launcher Build | -11 -10 -10 ------- Run | Yrd Mat Min Slots Evolved . | . . . Power . | . . . Propulsion . | . . . Utility . | . . . Weapon . | . . . Parts Attached 21 | 6 9 6 Power 2 | 1 . 1 Engine 2 | 1 . 1 Core . | . . . Reactor . | . . . Propulsion 4 | 2 2 . Treads . | . . . Leg . | . . . Wheel 4 | 2 2 . Hover . | . . . Flight . | . . . Utility 3 | . 3 . Device . | . . . Storage 2 | . 2 . Processor . | . . . Hackware . | . . . Protection 1 | . 1 . Artifact . | . . . Weapon 12 | 3 4 5 Energy Gun . | . . . Energy Cannon . | . . . Ballistic Gun 9 | 3 4 2 Ballistic Cannon . | . . . Launcher 3 | . . 3 Special Weapon . | . . . Impact Weapon . | . . . Slashing Weapon . | . . . Piercing Weapon . | . . . Special Melee Weapon . | . . . Unidentified Prototypes . | . . . Parts Lost 10 | . 5 5 Power 2 | . . 2 Propulsion 3 | . 2 1 Utility . | . . . Weapon 5 | . 3 2 Highest Loss Streak 5 | . 3 5 To Critical Strikes . | . . . Average Slot Usage (%) 93 | . 91 99 Engine 14 | . 14 14 Wheel 27 | . 27 27 Storage 13 | . 13 14 Protection 8 | . 6 14 Ballistic Gun 24 | . 28 15 Launcher 3 | . . 11 Naked Turns . | . . . Heaviest Build 93 | 9 90 93 Greatest Support 20 | 20 20 20 Greatest Overweight (x) 8 | . 4 8 Average Overweight (x) 3 | . 3 4 Largest Inventory Capacity 25 | 5 25 25 Average Capacity 23 | 5 24 25 Most Carried 16 | 4 13 16 Average Carried 11 | 2 9 15 Final Capacity 25 | 5 25 25 Final Carried 14 | 4 11 14 Class Distribution -------------------- 100% | Mutant Dominant Class ---------------- Mutant | -10/Materials Mutant | -10/Mines Resources | -11 -10 -10 ----------- Run | Yrd Mat Min Matter Collected 683 | 223 444 16 Remotely . | . . . Salvage Created 525 | . 477 48 Parts 36 | . 34 2 Haulers Intercepted . | . . . Recyclers Shooed . | . . . Parts Field Recycled . | . . . Retrieved Matter . | . . . Parts Self-Destructed . | . . . Prevented . | . . . Kills | -11 -10 -10 ------- Run | Yrd Mat Min Combat Hostiles Destroyed 15 | . 13 2 Guns 13 | . 13 . AOE 2 | . . 2 Classes Destroyed 5 | . 5 . Worker 1 | . 1 . Recycler 1 | . 1 . Operator 1 | . 1 . Swarmer 6 | . 6 . Grunt 9 | . 7 2 Best Kill Streak 9 | . 9 2 Combat Bots Only 8 | . 8 2 Max Kills in Single Turn 2 | . 2 1 Gunslinging 1 | . 1 . Exploded 1 | . . 1 Melee . | . . . Uniques/NPCs Destroyed . | . . . Combat | -11 -10 -10 -------- Run | Yrd Mat Min Hostile Shots Fired 110 | . 97 13 Missed 28 | . 24 4 Damage Taken 1097 | . 763 334 Core 253 | . 151 102 Absorbed by Shields . | . . . Redirected to Shielding 40 | . 25 15 Core Remaining (%) 100 | 100 . . Volleys Fired 66 | . 64 2 Largest 2 | . 2 2 Hottest 60 | . 40 60 Shots Fired 132 | . 128 4 Gun 128 | . 128 . Cannon . | . . . Launcher 4 | . . 4 Special . | . . . Kinetic 128 | . 128 . Thermal . | . . . Explosive 4 | . . 4 Electromagnetic . | . . . Robot Hit Streak 9 | . 7 9 Robot Miss Streak 4 | . 4 . Penetration Max . | . . . Secondary Targets 1 | . 1 . Max Gunslinging Chain 1 | . 1 . Shots Hit Robots 80 | . 76 4 Core Hits 32 | . 26 6 Critical Kills . | . . . Critical Parts Destroyed 1 | . 1 . Critical Strikes 1 | . 1 . Destroy 1 | . 1 . Melee Attacks . | . . . Impact . | . . . Slashing . | . . . Piercing . | . . . Sneak Attacks . | . . . Combat Hostiles . | . . . Follow-up Attacks . | . . . Damage Inflicted 1045 | . 892 153 Guns 892 | . 892 . Cannons . | . . . Explosions 153 | . . 153 Melee . | . . . Ramming . | . . . Kinetic 892 | . 892 . Thermal . | . . . Explosive 153 | . . 153 Electromagnetic . | . . . Impact . | . . . Slashing . | . . . Piercing . | . . . Highest Corruption . | . . . Average Corruption . | . . . Corruption Purged . | . . . Corruption Blocked . | . . . Overload Shots . | . . . Overflow Damage . | . . . Projectiles . | . . . Explosions . | . . . Melee . | . . . Knockbacks . | . . . Impact . | . . . Kinetic . | . . . Secondary . | . . . Self-Inflicted Damage . | . . . Shots . | . . . Rammed . | . . . Targets Rammed . | . . . Kicked . | . . . Crushed . | . . . Highest Temperature 18 | . 18 . Average Temperature 8 | . 8 . Received Heat Transfer 354 | . 345 9 Siege Activations . | . . . Robots Corrupted . | . . . Combat Hostiles . | . . . Parts Fried . | . . . Impact Corruptions . | . . . Robots Melted . | . . . Combat Hostiles . | . . . Parts Melted . | . . . Heat Transferred . | . . . Parts Sabotaged . | . . . Parts Stolen . | . . . Parts Stripped . | . . . Power Chain Reactions . | . . . Alert | -11 -10 -10 ------- Run | Yrd Mat Min Peak Influence 225 | . 225 85 Initial 8 | . . 8 Average 57 | . 54 69 Maximum Alert Level 1 | . 1 . Low Security (%) 94 | 100 91 100 Level 1 5 | . 8 . Level 2 . | . . . Level 3 . | . . . Level 4 . | . . . Level 5 . | . . . High Security . | . . . Max Security . | . . . Squads Dispatched 3 | . 3 . Investigation 1 | . 1 . Extermination . | . . . Reinforcement 2 | . 2 . Assault . | . . . Garrison . | . . . Intercept . | . . . Searches Triggered . | . . . Construction Impeded . | . . . Haulers Reinforced . | . . . Active Scanning Responses . | . . . Cargo Convoy Interrupts . | . . . Stealth | -11 -10 -10 --------- Run | Yrd Mat Min Distress Signals 1 | . 1 . Communications Jammed . | . . . Distress Signals . | . . . Times Spotted 29 | . 20 9 Peak Tracking Total 6 | . 6 4 Tactical Retreats 1 | . . 1 Traps | -11 -10 -10 ------- Run | Yrd Mat Min Traps Triggered 1 | . 1 . Indirectly . | . . . Trap Hack Attempts . | . . . Triggered . | . . . Disarmed . | . . . Reprogrammed . | . . . Reused . | . . . Traps Extracted . | . . . Installed 1 | . . 1 Triggered . | . . . Most Traps Carried 4 | . . 4 Machines | -11 -10 -10 ---------- Run | Yrd Mat Min Machines Disabled . | . . . Max in Single Turn . | . . . Machines Repaired . | . . . Machines Dismantled . | . . . Machines Sabotaged . | . . . Overloaded Fab Kills . | . . . Hacking | -11 -10 -10 --------- Run | Yrd Mat Min Machines Accessed 2 | . 2 . Terminals 2 | . 2 . Fabricators . | . . . Repair Stations . | . . . Recycling Units . | . . . Scanalyzers . | . . . Garrison Access . | . . . Total Hacks 4 | . 4 . Successful 2 | . 2 . Failed 2 | . 2 . Catastrophic . | . . . Database Lockouts . | . . . Manual . | . . . Terminals 4 | . 4 . Fabricators . | . . . Repair Stations . | . . . Recycling Units . | . . . Scanalyzers . | . . . Garrison Access . | . . . Terminal Hacks 2 | . 2 . Branch Access Points 1 | . 1 . Emergency Access Points 1 | . 1 . Fabricator Hacks . | . . . Repair Station Hacks . | . . . Recycling Unit Hacks . | . . . Scanalyzer . | . . . Garrison Access Hacks . | . . . Unauthorized Hacks . | . . . Terminals . | . . . Fabricators . | . . . Repair Stations . | . . . Recycling Units . | . . . Scanalyzers . | . . . Garrison Access . | . . . Data Cores Recovered . | . . . Used . | . . . Hacking Detections 2 | . 2 . Full Trace Events 1 | . 1 . Feedback Events . | . . . Feedback Blocked . | . . . Robot Schematics Acquired . | . . . Robots Built . | . . . Authchips . | . . . Time . | . . . Total Robot Build Rating . | . . . Part Schematics Acquired . | . . . Parts Built . | . . . Authchips . | . . . Time . | . . . Total Part Build Rating . | . . . Parts Repaired . | . . . Time . | . . . Parts Recycled . | . . . Recycled Matter . | . . . Retrieved Matter . | . . . Retrieved Components . | . . . Parts Scanalyzed . | . . . Part Schematics Acquired . | . . . Parts Damaged . | . . . Bothacking | -11 -10 -10 ------------ Run | Yrd Mat Min Used RIF Installer . | . . . Robots Hacked . | . . . Non-combat . | . . . Combat . | . . . Robot Hacks Applied . | . . . Relay Couplers Released . | . . . Fabnet Peak Effective % . | . . . Robots Rewired . | . . . Allies Hacked . | . . . Hacks Repelled . | . . . Allies | -11 -10 -10 -------- Run | Yrd Mat Min Total Allies . | . . . Largest Group . | . . . Highest-Rated Group . | . . . Highest-Rated Ally . | . . . Total Orders . | . . . Ally Attacks . | . . . Total Damage . | . . . Kills . | . . . Allies Corrupted . | . . . Allies Melted . | . . . Intel | -11 -10 -10 ------- Run | Yrd Mat Min Robot Analysis Total . | . . . Derelict Logs Recovered 2 | . . 2 Drone Launches . | . . . Drone Recoveries . | . . . Exploration | -11 -10 -10 ------------- Run | Yrd Mat Min Turns Passed 1523 | 53 989 481 Spaces Moved 943 | 52 566 325 Core 1 | 1 . . Treads . | . . . Legs . | . . . Wheels 942 | 51 566 325 Hover . | . . . Flight . | . . . Fastest Speed 50 | 50 80 140 Average Speed 135 | 79 137 140 Slowest Speed 200 | 80 140 200 Overloaded Moves . | . . . Propulsion Burnouts . | . . . Robots Hopped . | . . . Cave-ins Triggered . | . . . Exploration Rate (%) 30 | 3 62 27 Regions Visited 2 Branch Regions 1 Pre-discovered Areas . | . . . Known Exits Taken 1 | . 1 . Unknown Exits Taken 1 | 1 . . Scrap Searched . | . . . Spaces Dug . | . . . Terrain Destroyed 18 | . . 18 Melee . | . . . Projectile . | . . . AOE 18 | . . 18 Terrain Rammed . | . . . Walls Destroyed . | . . . Machines Disabled . | . . . Actions | -11 -10 -10 --------- Run | Yrd Mat Min Total 1056 | 60 653 343 Wait 7 | . 3 4 Move 941 | 51 565 325 Hop . | . . . Pick Up 18 | 3 11 4 Fast Attach 7 | 5 2 . Attach 7 | . 6 1 Detach 1 | . 1 . Swap 7 | 1 1 5 Drop 1 | . . 1 Fire 66 | . 64 2 Melee . | . . . Ram . | . . . Kick . | . . . Crush . | . . . Escape Stasis . | . . . Rewire . | . . . Trap 1 | . . 1 Miscellaneous . | . . . Route ------- -11/Scrapyard -10/Materials (discovered 2 exits: [*Mat] / *Min) -10/Mines History --------- Turn | Location | Event 9 | -11/Scrapyard | Discovered new exit (range 16) 54 | -11/Scrapyard | Entered Materials 263 | -10/Materials | Discovered new exit (range 4) 313 | -10/Materials | Build established: Mutant 400 | -10/Materials | Destroyed 8 combat bots 586 | -10/Materials | Discovered new exit (range 15) 701 | -10/Materials | Core integrity fell below 50% 715 | -10/Materials | Lost 3 parts (1n2w) 975 | -10/Materials | Identified exit to Mines 1043 | -10/Materials | Entered Mines 1073 | -10/Mines | Found a hidden stash of uninstalled traps 1140 | -10/Mines | Received a Rocket Launcher from a helpful Derelict 1164 | -10/Mines | Learned Materials emergency access door positions 1239 | -10/Mines | Assembled infested the area 1244 | -10/Mines | Assisted by a Guerilla fighting off Assembled 1246 | -10/Mines | Learned Materials terminal intel 1519 | -10/Mines | Core integrity fell below 20% 1524 | -10/Mines | Destroyed by D-53 Grenadier with Mini Grenade Launcher Last Messages --------------- 01501_ U-05 Engineer lays Concrete. 01504_ The unstable cave ceiling collapses. 01505_ K-01 Serf collects debris. 01505_ U-05 Engineer lays Concrete. 01508_ K-01 Serf collects debris. 01509_ U-05 Engineer builds a Wall. 01512_ Dropped Explosive Trap. 01512_ Installed Explosive Trap. 01512_ Ion Engine destroyed. 01512_ Pulverizer disabled. 01512_ U-05 Engineer lays Concrete. 01514_ The unstable cave ceiling collapses. 01514_ U-05 Engineer lays Concrete. 01515_ Wheel destroyed. 01515_ Lgt. Assault Rifle destroyed. 01515_ U-05 Engineer builds a Wall. 01519_ The unstable cave ceiling collapses. 01519_ U-05 Engineer builds a Wall. 01524_ Lgt. Assault Rifle destroyed. 01524_ Ion Engine destroyed. Map ----- +----------------------------------------------------+ | ?????????????????????????????????????????????????? | | ?????????????????????????????????????????????????? | | ?????????????????????????????????????????????????? | | ?????????????????????????????????????????????????? | | ?????????????????????????????????????????????????? | | ?????????????????????????????????????????????????? | | ?????????????????????????????????????????????????? | | ???????????????????????????####??????????????????? | | ?????????????????????####### ###????????????????? | | ?????????????????????# #????????????????? | | ?????????????????????# #????????????????? | | ??????????????????????# #????????????????? | | ??????????????????????##### ##????########????? | | ??????????????????????????## #?????# #????? | | ???????????????????????????# ###?????# #????? | | ???????????????????????????# #???????# """ #????? | | ???????????????????????????# #???????# """ #????? | | ???????????????????????????# #???????# """ #????? | | ???????????????????????????# #???????# #????? | | ???????????????????????????# #???????#### ###????? | | ???????????????????????????# #??????????# #??????? | | ????????????????????????#### #??????????# #??????? | | #?????????????????????### ## #??????????# #??????? | | #???????????###??###### #??????????# #??????? | | "?????????### #### ##??????????# #??????? | | #????????## " " @ #??????????# ######?? | | #???????## #??????????# #?? | | ######### # k " #??????????###### #?? | | d #???????????????# #?? | | ########## d #?????????????### #?? | | ????????## # ##???????????### #?? | | ?????????######### #???????????## #?? | | ?????????????????### # # ##??????????## #?? | | ???????????????????## ############# #?? | | ???????????????????# ##?? | | ???????????????????# ####??? | | ???????????????????## #### ######## #######???? | | ????????????????????#####??# #??????# # ##???? | | ???????????????????????????# #?????## # #???? | | ??????????????????????????? ?????## ## ##???? | | ??????????????????????????# #???## ##??? | | ??????????????????????????######???# = #??? | | ??????????????????????????????????## ##??? | | ??????????????????????????????????# #???? | | ??????????????????????????????????# ##???? | | ?????????????????????????????????# ####????? | | ????????????????????????????????# ##???????? | | ???????????????????????????????# ##????????? | | ???????????????????????????????# ##?????????? | | ???????????????????????????????## ###???????????? | +----------------------------------------------------+ Best States ------------- Heat Dissipation 25 Energy Generation 10 Energy Capacity 250 Matter Stores 300 Matter Capacity 300 Sight Range 16 Terrain Scan Density 10 Propulsion Shielding 33 Evasion (%) 44 Item Schematics ----------------- None Robot Schematics ------------------ None Fabricated ------------ Nothing Alien Tech Used ----------------- None Achievements -------------- None Challenges ------------ None Game ------ Seed SensorCobblerBank Manual? 0 Play Time 00:12:06 Cumulative 14.6 hours Start 2024.07.08 @ 16:36:03 End 2024.07.08 @ 16:47:23 Sessions 1 Manual Loads 0 Difficulty Rogue Special Mode None Game No. 21 Rogue 21 Adventurer 0 Explorer 0 Win Type - Total 0 Types 0/0/0/0/0/0/0/0/0 Lore% 14 Gallery% 18 Achievement% 15 Wizard Run 0 Options --------- Layout 1 ASCII 0 Keyboard 1 Movement Numpad Keybinds 0 Fullscreen 2 Font 24/Cog Map View 50x35 Zoom Use 0% Tactical HUD 1 Map Filters NONE Filters NONE Steam 1 RUN: eba9f2c0-d089-4857-82b5-091e8c36f1e4